fUSD/lending_fUSD_20240428
["ID","MTS","AMOUNT","RATE_DAILY","PERIOD"]
[36491,1714331489099,-783.25,0.00012054,2]
[36493,1714331489117,-500.0,0.00012054,2]
[36495,1714331489135,-816.26,0.00012054,2]
[36497,1714331489152,-365.99874986,0.00012054,2]
[36499,1714331489171,-500.0,0.00012054,2]
[36501,1714331489189,-668.56,0.00012054,2]
[36503,1714331489207,-788.51,0.00012054,2]
[36504,1714331489216,-500.0,0.00012054,2]
[36505,1714331489225,-500.0,0.00012054,2]
[36507,1714331489243,-500.0,0.00012054,2]
[36509,1714331489261,-513.17,0.00012054,2]
[36511,1714331489280,-565.5,0.00012054,2]
[36513,1714331489298,-1218.59,0.00012054,2]
[36515,1714331489316,-500.0,0.00012054,2]
[36516,1714331489325,-643.86,0.00012054,2]
[36517,1714331489334,-500.0,0.00012054,2]
[36518,1714331489344,-666.45,0.00012054,2]
[36519,1714331489357,-500.0,0.00012054,2]
[36520,1714331489366,-513.55,0.00012054,2]
[36521,1714331489375,-500.0,0.00012054,2]
[36523,1714331489395,-1577.52,0.00012054,2]
[36525,1714331489413,-500.0,0.00012054,2]
[36527,1714331489432,-500.0,0.00012054,2]
[36529,1714331489451,-728.71,0.00012054,2]
[36531,1714331489469,-803.65,0.00012054,2]
[36533,1714331489487,-500.0,0.00012054,2]
[36534,1714331489496,-500.0,0.00012054,2]
[36535,1714331489505,-500.0,0.00012054,2]
[36536,1714331489514,-575.03,0.00012054,2]
[36537,1714331489523,-500.0,0.00012054,2]
[36538,1714331489532,-610.34379884,0.00012054,2]
[36539,1714331489540,-542.89,0.00012054,2]
[36540,1714331489549,-538.42,0.00012054,2]
[36541,1714331489558,-1308.96,0.00012054,2]
[36542,1714331489567,-772.95,0.00012054,2]
[36543,1714331489577,-500.0,0.00012054,2]
[36544,1714331489586,-815.56,0.00012054,2]
[36545,1714331489596,-513.25,0.00012054,2]
[36546,1714331489608,-500.0,0.00012054,2]
[36547,1714331489619,-920.36,0.00012054,2]
[36548,1714331489629,-500.0,0.00012054,2]
[36549,1714331489640,-645.92,0.00012054,2]
[36550,1714331489651,-500.0,0.00012054,2]
[36551,1714331489660,-592.76,0.00012054,2]
[36552,1714331489670,-623.57,0.00012054,2]
[36553,1714331489681,-765.46,0.00012054,2]
[36554,1714331489690,-652.17,0.00012054,2]
[36555,1714331489700,-500.0,0.00012054,2]
[36556,1714331489711,-500.0,0.00012054,2]
[36557,1714331489720,-585.78,0.00012054,2]
[36558,1714331489730,-519.38,0.00012054,2]
[36559,1714331489739,-500.0,0.00012054,2]
[36560,1714331489748,-1176.19,0.00012054,2]
[36561,1714331489757,-535.83,0.00012054,2]
[36562,1714331489767,-500.0,0.00012054,2]
[36563,1714331489776,-500.0,0.00012054,2]
[36564,1714331489787,-500.0,0.00012054,2]
[36565,1714331489797,-581.86,0.00012054,2]
[36567,1714331489815,-608.78,0.00012054,2]
[36569,1714331489835,-640.22,0.00012054,2]
[36571,1714331489854,-543.78531946,0.00012054,2]
[36573,1714331489874,-710.87,0.00012054,2]
[36575,1714331489893,-500.0,0.00012054,2]
[36577,1714331489912,-500.0,0.00012054,2]
[36579,1714331489931,-725.07,0.00012054,2]
[36581,1714331489950,-500.0,0.00012054,2]
[36583,1714331489969,-544.86,0.00012054,2]
[36585,1714331489987,-726.49,0.00012054,2]
[36587,1714331490006,-500.0,0.00012054,2]
[36589,1714331490024,-540.78,0.00012054,2]
[36591,1714331490043,-500.0,0.00012054,2]
[36593,1714331490062,-500.0,0.00012054,2]
[36595,1714331490081,-698.54,0.00012054,2]
[36597,1714331490100,-500.0,0.00012054,2]
[36599,1714331490118,-500.0,0.00012054,2]
[36601,1714331490137,-571.2,0.00012054,2]
[36603,1714331490156,-890.23,0.00012054,2]
[36605,1714331490175,-628.44,0.00012054,2]
[36607,1714331490193,-512.99,0.00012054,2]
[36609,1714331490211,-500.0,0.00012054,2]
[36611,1714331490229,-807.65,0.00012054,2]
[36613,1714331490247,-721.68,0.00012054,2]
[36615,1714331490266,-500.0,0.00012054,2]
[36617,1714331490285,-500.0,0.00012054,2]
[36619,1714331490303,-500.0,0.00012054,2]
[36621,1714331490320,-500.0,0.00012054,2]
[36623,1714331490338,-500.0,0.00012054,2]
[36624,1714331490349,-500.0,0.00012054,2]
[36625,1714331490359,-500.0,0.00012054,2]
[36627,1714331490377,-500.0,0.00012054,2]
[36629,1714331490396,-500.0,0.00012054,2]
[36631,1714331490414,-500.0,0.00012054,2]
[36633,1714331490435,-500.0,0.00012054,2]
[36635,1714331490454,-500.0,0.00012054,2]
[36637,1714331490471,-998.15,0.00012054,2]
[36639,1714331490489,-500.0,0.00012054,2]
[36641,1714331490507,-500.0,0.00012054,2]
[36643,1714331490525,-573.36,0.00012054,2]
[36645,1714331490544,-500.0,0.00012054,2]
[36647,1714331490562,-565.43,0.00012054,2]
[36649,1714331490581,-500.0,0.00012054,2]
[36651,1714331490600,-614.15,0.00012054,2]
[36653,1714331490621,-544.68,0.00012054,2]
[36655,1714331490639,-500.0,0.00012054,2]
[36657,1714331490658,-500.0,0.00012054,2]
[36659,1714331490678,-150.0,0.00012054,2]
[36661,1714331490695,-500.0,0.00012054,2]
[36663,1714331490713,-601.85,0.00012054,2]
[36665,1714331490731,-500.0,0.00012054,2]
[36667,1714331490749,-500.0,0.00012054,2]
[36668,1714331490758,-500.0,0.00012054,2]
[36669,1714331490767,-500.0,0.00012054,2]
[36671,1714331490786,-500.0,0.00012054,2]
[36673,1714331490803,-500.0,0.00012054,2]
[36675,1714331490821,-500.0,0.00012054,2]
[36677,1714331490839,-500.0,0.00012054,2]
[36679,1714331490858,-979.76,0.00012054,2]
[36681,1714331490876,-662.94,0.00012054,2]
[36683,1714331490895,-500.0,0.00012054,2]
[36685,1714331490914,-500.0,0.00012054,2]
[36687,1714331490932,-500.0,0.00012054,2]
[36689,1714331490951,-511.71,0.00012054,2]
[36691,1714331490970,-500.0,0.00012054,2]
[36693,1714331491142,-500.0,0.00012054,2]
[36695,1714331491161,-913.43,0.00012054,2]
[36697,1714331491179,-540.89,0.00012054,2]
[36699,1714331491199,-500.0,0.00012054,2]
[36701,1714331491218,-717.54,0.00012054,2]
[36703,1714331491236,-500.0,0.00012054,2]
[36705,1714331491255,-500.0,0.00012054,2]
[36707,1714331491274,-500.0,0.00012054,2]
[36709,1714331491294,-500.0,0.00012054,2]
[36711,1714331491313,-500.0,0.00012054,2]
[36713,1714331491332,-500.0,0.00012054,2]
[36714,1714331491341,-500.0,0.00012054,2]
[36715,1714331491353,-500.0,0.00012054,2]
[36716,1714331491364,-500.0,0.00012054,2]
[36717,1714331491373,-500.0,0.00012054,2]
[36718,1714331491383,-500.0,0.00012054,2]
[36719,1714331491393,-500.0,0.00012054,2]
[36721,1714331491412,-996.75,0.00012054,2]
[36723,1714331491436,-500.0,0.00012054,2]
[36725,1714331491456,-500.0,0.00012054,2]
[36727,1714331491476,-500.0,0.00012054,2]
[36729,1714331491495,-500.0,0.00012054,2]
[36731,1714331491514,-781.66,0.00012054,2]
[36733,1714331491535,-624.17401542,0.00012054,2]
[36734,1714331491544,-604.53,0.00012054,2]
[36735,1714331491553,-500.0,0.00012054,2]
[36736,1714331491562,-500.0,0.00012054,2]
[36737,1714331491572,-500.0,0.00012054,2]
[36738,1714331491581,-383.63,0.00012054,2]
[36739,1714331491590,-768.34,0.00012054,2]
[36740,1714331491600,-500.0,0.00012054,2]
[36741,1714331491610,-500.0,0.00012054,2]
[36742,1714331491619,-500.0,0.00012054,2]
[36743,1714331491628,-500.0,0.00012054,2]
[36744,1714331491637,-500.0,0.00012054,2]
[36745,1714331491646,-500.0,0.00012054,2]
[36746,1714331491656,-531.88,0.00012054,2]
[36747,1714331491665,-1007.48,0.00012054,2]
[36748,1714331491674,-1772.83,0.00012054,2]
[36749,1714331491683,-2921.48,0.00012054,2]
[36750,1714331491693,-532.51,0.00012054,2]
[36751,1714331491703,-986.84,0.00012054,2]
[36752,1714331491712,-598.01,0.00012054,2]
[36753,1714331491721,-500.0,0.00012054,2]
[36754,1714331491730,-500.0,0.00012054,2]
[36755,1714331491739,-500.0,0.00012054,2]
[36756,1714331491750,-625.85,0.00012054,2]
[36757,1714331491760,-506.40992565,0.00012054,2]
[36758,1714331491770,-500.0,0.00012054,2]
[36759,1714331491780,-805.9,0.00012054,2]
[36760,1714331491791,-500.0,0.00012054,2]
[36761,1714331491800,-151.92,0.00012054,2]
[36762,1714331491810,-500.0,0.00012054,2]
[36763,1714331491819,-1026.14,0.00012054,2]
[36764,1714331491829,-500.0,0.00012054,2]
[36765,1714331491838,-500.0,0.00012054,2]
[36766,1714331491848,-500.0,0.00012054,2]
[36767,1714331491857,-1489.77,0.00012054,2]
[36768,1714331491866,-500.0,0.00012054,2]
[36769,1714331491874,-500.0,0.00012054,2]
[36770,1714331491884,-500.0,0.00012054,2]
[36771,1714331491894,-500.0,0.00012054,2]
[36772,1714331491904,-1492.28,0.00012054,2]
[36773,1714331491914,-772.53,0.00012054,2]
[36774,1714331491923,-513.17602413,0.00012054,2]
[36775,1714331491932,-622.52,0.00012054,2]
[36776,1714331491942,-2487.11,0.00012054,2]
[36777,1714331491951,-500.0,0.00012054,2]
[36778,1714331491960,-1102.77,0.00012054,2]
[36779,1714331491970,-500.0,0.00012054,2]
[36780,1714331491979,-500.0,0.00012054,2]
[36781,1714331491989,-979.15,0.00012054,2]
[36782,1714331491998,-2683.52,0.00012054,2]
[36783,1714331492009,-500.0,0.00012054,2]
[36785,1714331492028,-500.0,0.00012054,2]
[36787,1714331492050,-757.63,0.00012054,2]
[36789,1714331492071,-500.0,0.00012054,2]
[36791,1714331492089,-1511.1,0.00012054,2]
[36793,1714331492109,-500.0,0.00012054,2]
[36795,1714331492128,-753.04,0.00012054,2]
[36797,1714331492146,-500.0,0.00012054,2]
[36799,1714331492165,-500.0,0.00012054,2]
[36801,1714331492184,-500.0,0.00012054,2]
[36803,1714331492203,-500.0,0.00012054,2]
[36804,1714331492212,-1439.12,0.00012054,2]
[36805,1714331492221,-500.0,0.00012054,2]
[36806,1714331492231,-500.0,0.00012054,2]
[36807,1714331492240,-560.22,0.00012054,2]
[36808,1714331492249,-500.0,0.00012054,2]
[36809,1714331492259,-500.0,0.00012054,2]
[36810,1714331492268,-500.0,0.00012054,2]
[36811,1714331492278,-2375.71,0.00012054,2]
[36812,1714331492288,-3328.96,0.00012054,2]
[36813,1714331492297,-768.05,0.00012054,2]
[36814,1714331492305,-726.91,0.00012054,2]
[36815,1714331492315,-500.0,0.00012054,2]
[36816,1714331492323,-463.07762316,0.00012054,2]
[36817,1714331492333,-500.0,0.00012054,2]
[36818,1714331492342,-452.38843654,0.00012054,2]
[36819,1714331492354,-1119.03,0.00012054,2]
[36820,1714331492363,-500.0,0.00012054,2]
[36821,1714331492373,-500.0,0.00012054,2]
[36823,1714331492391,-1829.87,0.00012054,2]
[36825,1714331492411,-502.88,0.00012054,2]
[36827,1714331492430,-1369.84,0.00012054,2]
[36829,1714331492449,-500.0,0.00012054,2]
[36831,1714331492468,-1950.72,0.00012054,2]
[36833,1714331492486,-2951.91,0.00012054,2]
[36835,1714331492505,-500.0,0.00012054,2]
[36837,1714331492523,-500.0,0.00012054,2]
[36839,1714331492543,-1806.02,0.00012054,2]
[36840,1714331492552,-500.0,0.00012054,2]
[36841,1714331492562,-500.0,0.00012054,2]
[36843,1714331492581,-1573.76,0.00012054,2]
[36845,1714331492599,-782.34,0.00012054,2]
[36847,1714331492618,-500.0,0.00012054,2]
[36848,1714331492627,-16629.27,0.00012054,2]
[36849,1714331492636,-8529.27,0.00012054,2]
[36851,1714331492655,-500.0,0.00012054,2]
[36852,1714331492665,-863.14,0.00012054,2]
[36853,1714331492675,-500.0,0.00012054,2]
[36855,1714331492694,-500.0,0.00012054,2]
[36857,1714331492712,-500.0,0.00012054,2]
[36859,1714331492731,-5159.18,0.00012054,2]
[36861,1714331492753,-500.0,0.00012054,2]
[36863,1714331492773,-629.14,0.00012054,2]
[36865,1714331492795,-500.0,0.00012054,2]
[36867,1714331492816,-1434.31,0.00012054,2]
[36869,1714331492837,-500.0,0.00012054,2]
[36871,1714331492857,-500.0,0.00012054,2]
[36873,1714331492876,-925.79,0.00012054,2]
[36875,1714331492896,-674.92,0.00012054,2]
[36877,1714331492916,-500.0,0.00012054,2]
[36879,1714331492935,-2859.93,0.00012054,2]
[36881,1714331492953,-500.0,0.00012054,2]
[36883,1714331492973,-500.0,0.00012054,2]
[36885,1714331492991,-500.0,0.00012054,2]
[36887,1714331493011,-982.93,0.00012054,2]
[36889,1714331493031,-487.48159736,0.00012054,2]
[36891,1714331493051,-558.43,0.00012054,2]
[36893,1714331493070,-900.56,0.00012054,2]
[36895,1714331493089,-500.0,0.00012054,2]
[36897,1714331493107,-500.0,0.00012054,2]
[36899,1714331493126,-760.17,0.00012054,2]
[36901,1714331493147,-500.0,0.00012054,2]
[36903,1714331493167,-812.36,0.00012054,2]
[36905,1714331493185,-586.66,0.00012054,2]
[36907,1714331493205,-1319.84,0.00012054,2]
[36909,1714331493224,-532.65,0.00012054,2]
[36911,1714331493243,-517.90553938,0.00012054,2]
[36913,1714331493261,-506.42,0.00012054,2]
[36915,1714331493281,-1243.71,0.00012054,2]
[36916,1714331493291,-500.0,0.00012054,2]
[36917,1714331493300,-774.93,0.00012054,2]
[36918,1714331493598,-11529.36,0.00012054,2]
[36919,1714331493608,-534.65,0.00012054,2]
[36920,1714331493618,-2615.87,0.00012054,2]
[36921,1714331493627,-956.53,0.00012054,2]
[36923,1714331493649,-500.0,0.00012054,2]
[36925,1714331493669,-694.2,0.00012054,2]
[36927,1714331493689,-613.08,0.00012054,2]
[36929,1714331493709,-500.0,0.00012054,2]
[36931,1714331493727,-1112.97,0.00012054,2]
[36933,1714331493746,-500.0,0.00012054,2]
[36935,1714331493765,-1711.83,0.00012054,2]
[36937,1714331493784,-500.0,0.00012054,2]
[36939,1714331493803,-500.0,0.00012054,2]
[36941,1714331493824,-1062.05,0.00012054,2]
[36943,1714331493844,-500.0,0.00012054,2]
[36945,1714331493865,-500.0,0.00012054,2]
[36947,1714331493884,-938.89,0.00012054,2]
[36949,1714331493903,-579.0,0.00012054,2]
[36951,1714331493922,-500.0,0.00012054,2]
[36953,1714331493941,-531.05,0.00012054,2]
[36955,1714331493960,-500.0,0.00012054,2]
[36957,1714331493978,-1489.82,0.00012054,2]
[36959,1714331493998,-500.0,0.00012054,2]
[36961,1714331494017,-500.0,0.00012054,2]
[36963,1714331494037,-894.45,0.00012054,2]
[36965,1714331494056,-500.0,0.00012054,2]
[36967,1714331494075,-774.47,0.00012054,2]
[36969,1714331494094,-4212.02,0.00012054,2]
[36971,1714331494113,-973.0,0.00012054,2]
[36972,1714331494122,-1126.83,0.00012054,2]
[36973,1714331494131,-500.0,0.00012054,2]
[36974,1714331494141,-917.33,0.00012054,2]
[36975,1714331494150,-500.0,0.00012054,2]
[36976,1714331494160,-500.0,0.00012054,2]
[36977,1714331494170,-672.42,0.00012054,2]
[36978,1714331494180,-500.0,0.00012054,2]
[36979,1714331494191,-5235.42,0.00012054,2]
[36980,1714331494203,-500.0,0.00012054,2]
[36981,1714331494213,-1242.59,0.00012054,2]
[36983,1714331494233,-500.0,0.00012054,2]
[36985,1714331494252,-500.0,0.00012054,2]
[36987,1714331494271,-1401.31,0.00012054,2]
[36989,1714331494291,-500.0,0.00012054,2]
[36990,1714331494301,-500.0,0.00012054,2]
[36991,1714331494311,-500.0,0.00012054,2]
[36993,1714331494330,-500.0,0.00012054,2]
[36995,1714331494356,-500.0,0.00012054,2]
[36997,1714331494375,-500.0,0.00012054,2]
[36999,1714331494394,-500.0,0.00012054,2]
[37001,1714331494412,-500.0,0.00012054,2]
[37003,1714331494431,-6674.97,0.00012054,2]
[37005,1714331494450,-524.08,0.00012054,2]
[37007,1714331494468,-500.0,0.00012054,2]
[37009,1714331494487,-1549.43,0.00012054,2]
[37011,1714331494510,-500.0,0.00012054,2]
[37013,1714331494530,-500.0,0.00012054,2]
[37014,1714331494541,-500.0,0.00012054,2]
[37015,1714331494551,-1266.3,0.00012054,2]
[37016,1714331494560,-951.73,0.00012054,2]
[37017,1714331494569,-500.0,0.00012054,2]
[37019,1714331494589,-500.0,0.00012054,2]
[37021,1714331494608,-500.0,0.00012054,2]
[37023,1714331494627,-500.0,0.00012054,2]
[37025,1714331494647,-1057.63,0.00012054,2]
[37027,1714331494668,-500.0,0.00012054,2]
[37029,1714331494686,-619.85,0.00012054,2]
[37030,1714331494696,-766.16,0.00012054,2]
[37031,1714331494705,-500.0,0.00012054,2]
[37032,1714331494714,-500.0,0.00012054,2]
[37033,1714331494723,-1206.57,0.00012054,2]
[37034,1714331494732,-500.0,0.00012054,2]
[37035,1714331494742,-1600.41,0.00012054,2]
[37036,1714331494752,-526.35,0.00012054,2]
[37037,1714331494761,-3105.73,0.00012054,2]
[37038,1714331494770,-1174.3,0.00012054,2]
[37039,1714331494779,-500.0,0.00012054,2]
[37040,1714331494789,-500.0,0.00012054,2]
[37041,1714331494798,-500.0,0.00012054,2]
[37042,1714331494808,-500.0,0.00012054,2]
[37043,1714331494818,-3774.23,0.00012054,2]
[37044,1714331494827,-500.0,0.00012054,2]
[37045,1714331494837,-1939.82,0.00012054,2]
[37046,1714331494846,-500.0,0.00012054,2]
[37047,1714331494856,-897.97,0.00012054,2]
[37048,1714331494866,-500.0,0.00012054,2]
[37049,1714331494877,-1975.3,0.00012054,2]
[37050,1714331494887,-566.88,0.00012054,2]
[37051,1714331494897,-500.0,0.00012054,2]
[37052,1714331494906,-2494.32,0.00012054,2]
[37053,1714331494915,-1962.38,0.00012054,2]
[37054,1714331494925,-500.0,0.00012054,2]
[37055,1714331494934,-3862.59,0.00012054,2]
[37056,1714331494943,-736.62,0.00012054,2]
[37057,1714331494952,-2736.52,0.00012054,2]
[37058,1714331494962,-500.0,0.00012054,2]
[37059,1714331494971,-500.0,0.00012054,2]
[37060,1714331494980,-2923.81,0.00012054,2]
[37061,1714331494990,-1242.16,0.00012054,2]
[37062,1714331494999,-500.0,0.00012054,2]
[37063,1714331495008,-678.26,0.00012054,2]
[37064,1714331495017,-1288.39,0.00012054,2]
[37065,1714331495027,-500.0,0.00012054,2]
[37066,1714331495037,-2897.29,0.00012054,2]
[37067,1714331495046,-500.0,0.00012054,2]
[37068,1714331495056,-500.0,0.00012054,2]
[37069,1714331495065,-1370.1,0.00012054,2]
[37070,1714331495075,-500.0,0.00012054,2]
[37071,1714331495085,-500.0,0.00012054,2]
[37072,1714331495095,-640.18,0.00012054,2]
[37073,1714331495105,-500.0,0.00012054,2]
[37074,1714331495115,-1204.37,0.00012054,2]
[37075,1714331495124,-20011.43,0.00012054,2]
[37076,1714331495134,-500.0,0.00012054,2]
[37077,1714331495143,-1538.14,0.00012054,2]
[37078,1714331495153,-500.0,0.00012054,2]
[37079,1714331495163,-500.0,0.00012054,2]
[37080,1714331495172,-500.0,0.00012054,2]
[37081,1714331495182,-8592.95,0.00012054,2]
[37082,1714331495191,-5719.97,0.00012054,2]
[37083,1714331495200,-529.13,0.00012054,2]
[37084,1714331495209,-500.0,0.00012054,2]
[37085,1714331495219,-500.0,0.00012054,2]
[37087,1714331495237,-500.0,0.00012054,2]
[37088,1714331495246,-500.0,0.00012054,2]
[37089,1714331495255,-500.0,0.00012054,2]
[37090,1714331495265,-765.55,0.00012054,2]
[37091,1714331495274,-500.0,0.00012054,2]
[37093,1714331495295,-1086.25,0.00012054,2]
[37095,1714331495313,-231.19,0.00012054,2]
[37096,1714331495323,-500.0,0.00012054,2]
[37097,1714331495332,-515.19,0.00012054,2]
[37099,1714331495354,-500.0,0.00012054,2]
[37101,1714331495374,-500.0,0.00012054,2]
[37103,1714331495394,-1043.10335377,0.00012081,2]
[37105,1714331495413,-782.23667968,0.00012192,2]
[37107,1714331495436,-301.0,0.000123,2]
[37109,1714331495455,-226.74223236,0.00012328,2]
[37110,1714331495465,-510.25,0.00012328,2]
[37111,1714331495474,-625.22,0.00012328,2]
[37112,1714331495484,-500.0,0.00012328,2]
[37113,1714331495493,-500.0,0.00012328,2]
[37115,1714331495512,-605.3,0.00012328,2]
[37116,1714331495522,-500.0,0.00012328,2]
[37117,1714331495531,-500.0,0.00012328,2]
[37118,1714331495541,-500.0,0.00012328,2]
[37119,1714331495551,-500.0,0.00012328,2]
[37120,1714331495560,-500.0,0.00012328,2]
[37121,1714331495570,-500.0,0.00012328,2]
[37122,1714331495579,-607.32,0.00012328,2]
[37123,1714331495589,-500.0,0.00012328,2]
[37124,1714331495598,-500.0,0.00012328,2]
[37125,1714331495608,-500.0,0.00012328,2]
[37126,1714331495617,-500.0,0.00012328,2]
[37127,1714331495627,-500.0,0.00012328,2]
[37128,1714331495637,-500.0,0.00012328,2]
[37129,1714331495645,-562.36,0.00012328,2]
[37130,1714331495655,-500.0,0.00012328,2]
[37131,1714331495665,-529.75,0.00012328,2]
[37132,1714331495674,-500.0,0.00012328,2]
[37133,1714331495684,-500.0,0.00012328,2]
[37135,1714331495703,-500.0,0.00012328,2]
[37137,1714331495722,-500.0,0.00012328,2]
[37139,1714331495740,-500.0,0.00012328,2]
[37141,1714331495760,-744.02,0.00012328,2]
[37143,1714331495778,-500.0,0.00012328,2]
[37144,1714331495788,-500.0,0.00012328,2]
[37145,1714331495798,-500.0,0.00012328,2]
[37146,1714331495807,-556.86,0.00012328,2]
[37147,1714331495816,-500.0,0.00012328,2]
[37148,1714331495826,-500.0,0.00012328,2]
[37149,1714331495835,-500.0,0.00012328,2]
[37150,1714331495844,-634.38,0.00012328,2]
[37151,1714331495853,-500.0,0.00012328,2]
[37152,1714331495863,-500.0,0.00012328,2]
[37153,1714331495872,-503.88,0.00012328,2]
[37154,1714331495882,-610.03,0.00012328,2]
[37155,1714331495892,-708.28,0.00012328,2]
[37156,1714331495902,-500.0,0.00012328,2]
[37157,1714331495911,-500.0,0.00012328,2]
[37159,1714331495930,-588.27,0.00012328,2]
[37161,1714331496030,-500.0,0.00012328,2]
[37163,1714331496051,-500.0,0.00012328,2]
[37165,1714331496070,-500.0,0.00012328,2]
[37167,1714331496090,-500.0,0.00012328,2]
[37169,1714331496108,-500.0,0.00012328,2]
[37171,1714331496128,-584.81,0.00012328,2]
[37172,1714331496137,-500.0,0.00012328,2]
[37173,1714331496147,-546.92,0.00012328,2]
[37174,1714331496156,-500.0,0.00012328,2]
[37175,1714331496165,-500.0,0.00012328,2]
[37176,1714331496174,-638.09,0.00012328,2]
[37177,1714331496184,-500.0,0.00012328,2]
[37178,1714331496193,-500.0,0.00012328,2]
[37179,1714331496202,-500.0,0.00012328,2]
[37181,1714331496221,-500.0,0.00012328,2]
[37183,1714331496240,-500.0,0.00012328,2]
[37185,1714331496259,-502.19303885,0.00012328,2]
[37187,1714331496278,-500.0,0.00012328,2]
[37189,1714331496297,-500.0,0.00012328,2]
[37191,1714331496316,-500.0,0.00012328,2]
[37193,1714331496335,-500.0,0.00012328,2]
[37195,1714331496355,-500.0,0.00012328,2]
[37197,1714331496375,-681.2,0.00012328,2]
[37199,1714331496395,-500.0,0.00012328,2]
[37201,1714331496414,-712.36,0.00012328,2]
[37203,1714331496436,-500.0,0.00012328,2]
[37205,1714331496455,-500.0,0.00012328,2]
[37206,1714331496465,-500.0,0.00012328,2]
[37207,1714331496474,-500.0,0.00012328,2]
[37208,1714331496483,-514.37,0.00012328,2]
[37209,1714331496493,-500.0,0.00012328,2]
[37210,1714331496502,-500.0,0.00012328,2]
[37211,1714331496511,-583.37,0.00012328,2]
[37212,1714331496520,-500.0,0.00012328,2]
[37213,1714331496530,-500.0,0.00012328,2]
[37214,1714331496540,-770.94,0.00012328,2]
[37215,1714331496550,-500.0,0.00012328,2]
[37216,1714331496560,-500.0,0.00012328,2]
[37217,1714331496569,-500.0,0.00012328,2]
[37219,1714331496588,-500.0,0.00012328,2]
[37221,1714331496606,-500.0,0.00012328,2]
[37223,1714331496624,-500.0,0.00012328,2]
[37225,1714331496642,-500.0,0.00012328,2]